bitfinex-derivatives/quotes_BNBF0:USTF0_20250112
["timestamp","ask_amount","ask_price","bid_price","bid_amount"]
[1736641184641,1.07003228,696.24,695.92,0.896]
[1736641184841,0.28726139,696.23,695.92,0.896]
[1736641189040,1.35729367,696.23,695.92,0.896]
[1736641189943,0.28726139,696.23,695.92,0.896]
[1736641193746,1.35729367,696.23,695.92,0.896]
[1736641194543,0.28726139,696.23,695.92,0.896]
[1736641196451,1.35729367,696.23,695.92,0.896]
[1736641198751,0.28726139,696.23,695.92,0.896]
[1736641245389,1.07003228,696.79,695.92,0.896]
[1736641245595,0.55095837,696.78,695.92,0.896]
[1736641245795,1.07003228,696.79,695.92,0.896]
[1736641245796,0.55096249,696.77,695.92,0.896]
[1736641245994,0.26392373,696.76,695.92,0.896]
[1736641246796,0.26391625,696.75,695.92,0.896]
[1736641246995,0.28703876,696.77,695.92,0.896]
[1736641247198,0.26391562,696.76,695.92,0.896]
[1736641247391,0.28703876,696.77,695.92,0.896]
[1736641273813,0.26394058,696.76,695.92,0.896]
[1736641274215,1.07003228,696.75,695.92,0.896]
[1736641274419,0.26394058,696.74,695.92,0.896]
[1736641274619,1.07003228,696.75,695.92,0.896]
[1736641274920,1.07003228,696.72,695.92,0.896]
[1736641275621,0.28706348,696.71,695.92,0.896]
[1736641284420,0.26396376,696.7,695.92,0.896]
[1736641287728,0.55103741,696.69,695.92,0.896]
[1736641287925,0.26396569,696.68,695.92,0.896]
[1736641288130,0.28707996,696.67,695.92,0.896]
[1736641288429,0.26396569,696.66,695.92,0.896]
[1736641288829,0.2870882,696.65,695.92,0.896]
[1736641289231,0.26396631,696.64,695.92,0.896]
[1736641289431,0.26396968,696.63,695.92,0.896]
[1736641289730,0.2870882,696.65,695.92,0.896]
[1736641290031,0.26397005,696.64,695.92,0.896]
[1736641290231,0.28709645,696.63,695.92,0.896]
[1736641293133,0.26397201,696.62,695.92,0.896]
[1736641293333,0.28710469,696.61,695.92,0.896]
[1736641305245,1.07003228,696.6,695.92,0.896]
[1736641305445,0.28711293,696.59,695.92,0.896]
[1736641306045,1.07003228,696.54,695.92,0.896]
[1736641306246,0.28713766,696.53,695.92,0.896]
[1736641309140,1.07003228,696.5,695.92,0.896]
[1736641309344,0.28715415,696.49,695.92,0.896]
[1736641309842,1.35718643,696.49,695.92,0.896]
[1736641312351,1.07003228,696.47,695.92,0.896]
[1736641312555,0.28716652,696.46,695.92,0.896]
[1736641313252,1.3571988,696.46,695.92,0.896]
[1736641314454,0.28716652,696.46,695.92,0.896]
[1736641315352,1.07003228,696.45,695.92,0.896]
[1736641316155,0.28717477,696.44,695.92,0.896]
[1736641316455,1.07003228,696.41,695.92,0.896]
[1736641316649,0.28719126,696.4,695.92,0.896]
[1736641328560,1.07003228,696.39,695.92,0.896]
[1736641328763,0.28719951,696.38,695.92,0.896]
[1736641330467,1.35723179,696.38,695.92,0.896]
[1736641331568,0.28719951,696.38,695.92,0.896]
[1736641386310,1.35723179,696.38,695.92,0.896]
[1736641387309,0.28719951,696.38,695.92,0.896]
[1736641390306,0.26410343,696.37,695.92,0.896]
[1736641391707,0.28720776,696.36,695.92,0.896]
[1736641391906,0.26410343,696.35,695.92,0.896]
[1736641392712,0.28720776,696.36,695.92,0.896]
[1736641394812,0.26409723,696.35,695.92,0.896]
[1736641395007,0.28720776,696.36,695.92,0.896]
[1736641395207,0.26409554,696.35,695.92,0.896]
[1736641396707,0.28721601,696.34,695.92,0.896]
[1736641396911,0.26409554,696.33,695.92,0.896]
[1736641397616,0.28721601,696.34,695.92,0.896]
[1736641493499,1.35724829,696.34,695.92,0.896]
[1736641494399,0.28721601,696.34,695.92,0.896]
[1736641501208,1.35724829,696.34,695.92,0.896]
[1736641501903,0.28721601,696.34,695.92,0.896]
[1736641611190,0.28719126,696.4,695.92,0.896]
[1736641611592,1.35722354,696.4,695.92,0.896]
[1736641613192,0.28719126,696.4,695.92,0.896]
[1736641614888,1.07003228,696.37,695.92,0.896]
[1736641615088,0.28720776,696.36,695.92,0.896]
[1736641623198,1.35724004,696.36,695.92,0.896]
[1736641624503,1.07003228,696.34,695.92,0.896]
[1736641625501,1.07003228,696.31,695.92,0.896]
[1736641625698,0.28723251,696.3,695.92,0.896]
[1736641738490,1.07025953,696.74,695.92,0.896]
[1736641738794,0.28705524,696.73,695.92,0.896]
[1736641774322,1.07025953,696.7,695.92,0.896]
[1736641774522,1.35732713,696.7,695.92,0.896]
[1736641775619,1.07025953,696.69,695.92,0.896]
[1736641779427,0.28707584,696.68,695.92,0.896]
[1736641780427,1.07025953,696.64,695.92,0.896]
[1736641781329,0.28707584,696.68,695.92,0.896]
[1736641781330,1.07025953,696.63,695.92,0.896]
[1736641782030,1.07025953,696.65,695.92,0.896]
[1736641782425,0.28709232,696.64,695.92,0.896]
[1736641941655,1.49883173,697.32,695.92,0.896]
[1736641941849,0.28682059,697.3,695.92,0.896]
[1736641942050,0.26377168,697.29,695.92,0.896]
[1736641942755,0.28683293,697.27,695.92,0.896]
[1736641942950,0.26377168,697.26,695.92,0.896]
[1736641943151,0.28684527,697.24,695.92,0.896]
[1736641943358,0.26377168,697.23,695.92,0.896]
[1736641944260,0.26376729,697.22,695.92,0.896]
[1736641944559,0.28686173,697.2,695.92,0.896]
[1736641944760,0.26376729,697.19,695.92,0.896]
[1736641945060,0.28686996,697.18,695.92,0.896]
[1736641945260,0.26376729,697.17,695.92,0.896]
[1736641945559,0.28687819,697.16,695.92,0.896]
[1736641946160,0.26376873,697.15,695.92,0.896]
[1736641946355,0.28688642,697.14,695.92,0.896]
[1736641947754,0.26377255,697.13,695.92,0.896]
[1736641947960,0.28689465,697.12,695.92,0.896]
[1736641948161,0.26377255,697.11,695.92,0.896]
[1736641948361,0.28690288,697.1,695.92,0.896]
[1736641949462,0.26378944,697.09,695.92,0.896]
[1736641949757,0.55070447,697.08,695.92,0.896]
[1736641949964,0.28691523,697.07,695.92,0.896]
[1736641953064,0.26380071,697.06,695.92,0.896]
[1736641953261,0.28691523,697.07,695.92,0.896]
[1736641953469,0.26380101,697.06,695.92,0.896]
[1736641954166,0.28692346,697.05,695.92,0.896]
[1736641958268,0.26379725,697.04,695.92,0.896]
[1736641958765,0.28693169,697.03,695.92,0.896]
[1736641960762,1.35719122,697.03,695.92,0.896]
[1736641962069,1.07025953,696.98,695.92,0.896]
[1736641962571,0.28695639,696.97,695.92,0.896]
[1736641962971,1.07025953,696.95,695.92,0.896]
[1736641963268,0.28696874,696.94,695.92,0.896]
[1736641964664,1.35722827,696.94,695.92,0.896]
[1736641965470,0.28696874,696.94,695.92,0.896]
[1736641967370,1.35722827,696.94,695.92,0.896]
[1736641971280,1.07025953,696.92,695.92,0.896]
[1736641971478,0.2869811,696.91,695.92,0.896]
[1736641972474,1.35724063,696.91,695.92,0.896]
[1736641974784,1.07025953,696.9,695.92,0.896]
[1736641977083,0.28698933,696.89,695.92,0.896]
[1736641978286,1.07025953,696.86,695.92,0.896]
[1736641978481,0.28700581,696.85,695.92,0.896]
[1736641981887,1.35726534,696.85,695.92,0.896]
[1736641983189,0.28700581,696.85,695.92,0.896]
[1736641984992,1.07025953,696.81,695.92,0.896]
[1736641985990,1.07025953,696.79,695.92,0.896]
[1736641986788,0.28703464,696.78,695.92,0.896]
[1736642081366,0.28703464,696.78,695.93,1.2903052]
[1736642082159,0.28703464,696.78,695.94,1.2903052]
[1736642082866,0.28703464,696.78,695.94,2.9253052]
[1736642084065,0.28703464,696.78,696.01,1.2903052]
[1736642085162,0.28703464,696.78,696.02,1.2903052]
[1736642086063,0.28703464,696.78,696.01,1.2903052]
[1736642088266,0.28703464,696.78,695.98,3.04984373]
[1736642088770,0.28703464,696.78,695.94,1.635]
[1736642116487,0.28693581,697.02,695.94,1.635]
[1736642116687,0.26385179,697.01,695.94,1.635]
[1736642116986,0.28694816,696.99,695.94,1.635]
[1736642117187,0.26385179,696.98,695.94,1.635]
[1736642117584,0.28696051,696.96,695.94,1.635]
[1736642117780,0.26385179,696.95,695.94,1.635]
[1736642117987,0.28697286,696.93,695.94,1.635]
[1736642119087,0.26387464,696.92,695.94,1.635]
[1736642121484,0.28697286,696.93,695.94,1.635]
[1736642129995,0.2638977,696.92,695.94,1.635]
[1736642130190,0.26391444,696.91,695.94,1.635]
[1736642130389,0.26391444,696.92,695.94,1.635]
[1736642130591,0.28698522,696.9,695.94,1.635]
[1736642130996,0.26391191,696.89,695.94,1.635]
[1736642131190,0.28699757,696.87,695.94,1.635]
[1736642131400,0.26390813,696.86,695.94,1.635]
[1736642131697,0.28700993,696.84,695.94,1.635]
[1736642131897,0.26390813,696.83,695.94,1.635]
[1736642132098,0.28702228,696.81,695.94,1.635]
[1736642132298,0.26390813,696.8,695.94,1.635]
[1736642132592,0.28703464,696.78,695.94,1.635]
[1736642137497,0.26390309,696.77,695.94,1.635]
[1736642137802,0.28704288,696.76,695.94,1.635]
[1736642140609,0.26391141,696.75,695.94,1.635]
[1736642141410,1.33418895,696.74,695.94,1.635]
[1736642141610,0.55098466,696.73,695.94,1.635]
[1736642141809,0.5509837,696.72,695.94,1.635]
[1736642142111,0.28706348,696.71,695.94,1.635]
[1736642145606,0.26393647,696.7,695.94,1.635]
[1736642145812,0.28706348,696.71,695.94,1.635]
[1736642151515,1.35732301,696.71,695.94,1.635]
[1736642152617,1.07025953,696.69,695.94,1.635]
[1736642152916,0.28707584,696.68,695.94,1.635]
[1736642153713,1.35733537,696.68,695.94,1.635]
[1736642154814,0.28707584,696.68,695.94,1.635]
[1736642230081,1.07025953,697.29,695.94,1.635]
[1736642230285,0.28683293,697.27,695.94,1.635]
[1736642230480,0.26374609,697.26,695.94,1.635]
[1736642230876,0.28684116,697.25,695.94,1.635]
[1736642231081,0.26374609,697.24,695.94,1.635]
[1736642231281,0.28684938,697.23,695.94,1.635]
[1736642231579,0.26374609,697.22,695.94,1.635]
[1736642231782,0.28685761,697.21,695.94,1.635]
[1736642231983,0.26374609,697.2,695.94,1.635]
[1736642232278,0.26374804,697.19,695.94,1.635]
[1736642232483,0.28686584,697.19,695.94,1.635]
[1736642233177,0.26375158,697.18,695.94,1.635]
[1736642233382,0.28687407,697.17,695.94,1.635]
[1736642234083,0.26376964,697.16,695.94,1.635]
[1736642234283,0.2868823,697.15,695.94,1.635]
[1736642234479,0.26376964,697.14,695.94,1.635]
[1736642234685,0.28689053,697.13,695.94,1.635]
[1736642237784,1.07025953,697.11,695.94,1.635]
[1736642237982,0.28690288,697.1,695.94,1.635]
[1736642238384,1.07025953,697.07,695.94,1.635]
[1736642238778,0.28691934,697.06,695.94,1.635]
[1736642238981,1.07025953,697.04,695.94,1.635]
[1736642239279,0.28693169,697.03,695.94,1.635]
[1736642240287,1.07025953,697.01,695.94,1.635]
[1736642241386,0.28693169,697.03,695.94,1.635]
[1736642286124,0.26383278,697.02,695.94,1.635]
[1736642286319,0.28694404,697.0,695.94,1.635]
[1736642286525,0.26383278,696.99,695.94,1.635]
[1736642286827,0.28695639,696.97,695.94,1.635]
[1736642287021,0.26383278,696.96,695.94,1.635]
[1736642287224,0.28695639,696.97,695.94,1.635]
[1736642288825,0.26385183,696.96,695.94,1.635]
[1736642289022,0.28695639,696.97,695.94,1.635]
[1736642289429,0.26386773,696.96,695.94,1.635]
[1736642290330,0.28696874,696.94,695.94,1.635]
[1736642290527,0.26386773,696.93,695.94,1.635]
[1736642291029,0.2869811,696.91,695.94,1.635]
[1736642291223,0.26386773,696.9,695.94,1.635]
[1736642291421,0.2869811,696.91,695.94,1.635]
[1736642363385,1.07025953,696.9,695.94,1.635]
[1736642363585,0.28698933,696.89,695.94,1.635]
[1736642372586,1.35724886,696.89,695.94,1.635]
[1736642373493,0.28698933,696.89,695.94,1.635]
[1736642411317,0.28698933,696.89,695.98,1.2903052]
[1736642412115,0.28698933,696.89,696.01,1.2903052]
[1736642413022,0.28698933,696.89,696.01,2.8753052]
[1736642413221,0.28698933,696.89,696.04,1.2903052]
[1736642414516,0.28698933,696.89,696.05,1.2903052]
[1736642415823,0.28698933,696.89,696.06,1.2903052]
[1736642418725,0.28698933,696.89,696.05,2.74034177]
[1736642418926,0.28698933,696.89,696.05,1.81232782]
[1736642419324,0.28698933,696.89,696.02,1.81232782]
[1736642419529,0.28698933,696.89,696.01,1.585]
[1736642421026,0.28698933,696.89,696.01,2.51285787]
[1736642421227,0.28698933,696.89,696.01,4.32518569]
[1736642421829,0.28698933,696.89,696.02,3.05158598]
[1736642422127,0.28698933,696.89,696.02,5.79177167]
[1736642422329,0.28698933,696.89,696.03,2.74018569]
[1736642424229,0.28698933,696.89,696.03,1.81232782]
[1736642424427,0.28698933,696.89,696.02,4.8639138]
[1736642425030,0.28698933,696.89,696.02,1.81232782]
[1736642425230,0.28698933,696.89,696.01,1.585]
[1736642426336,0.28698933,696.89,696.04,1.2903052]
[1736642427236,0.28698933,696.89,696.01,1.585]
[1736642441447,0.28698933,696.89,696.01,4.63170792]
[1736642441642,0.28698933,696.89,696.02,2.73980389]
[1736642443148,0.28698933,696.89,696.02,4.30580389]
[1736642443348,0.28698933,696.89,696.03,2.73980389]
[1736642443752,0.28698933,696.89,696.02,1.566]
[1736642444646,0.28698933,696.89,696.02,4.30580389]
[1736642444849,0.28698933,696.89,696.03,5.78651181]
[1736642445048,0.28698933,696.89,696.04,2.73980389]
[1736642460169,1.07025953,697.42,696.04,2.73980389]
[1736642461168,1.07025953,697.43,696.04,1.80988243]
[1736642461363,1.07025953,697.43,696.03,4.85659035]
[1736642461763,1.07025953,697.63,696.03,4.85659035]
[1736642462170,1.07025953,697.63,696.03,1.80988243]
[1736642462469,0.28669313,697.61,696.02,1.566]
[1736642473479,0.26361057,697.6,696.02,1.566]
[1736642473680,0.28670135,697.59,696.02,1.566]
[1736642473880,0.26361057,697.58,696.02,1.566]
[1736642474084,0.28670957,697.57,696.02,1.566]
[1736642475483,0.26361089,697.56,696.02,1.566]
[1736642475682,0.28671779,697.55,696.02,1.566]
[1736642482294,0.28671779,697.55,696.02,2.49268895]
[1736642482494,0.28671779,697.55,696.02,4.30257138]
[1736642483293,0.28671779,697.55,696.03,3.04670792]
[1736642483486,0.28671779,697.55,696.03,5.7832793]
[1736642483691,0.28671779,697.55,696.04,2.73657138]
[1736642484794,0.28671779,697.55,696.04,4.43357138]
[1736642485089,0.28671779,697.55,696.05,2.73657138]
[1736642485490,0.28671779,697.55,696.05,0.92668895]
[1736642485689,0.28671779,697.55,696.04,1.697]
[1736642486792,0.28671779,697.55,696.04,4.43357138]
[1736642486989,0.28671779,697.55,696.04,3.50688243]
[1736642488194,0.28671779,697.55,696.05,3.04670792]
[1736642488390,0.28671779,697.55,696.05,4.85659035]
[1736642490893,0.27504112,697.55,696.05,4.85659035]
[1736642491099,0.27504112,697.55,696.06,0.92564773]
[1736642491399,0.27504112,697.55,696.06,2.73553016]
[1736642492197,0.27504112,697.55,696.06,1.80988243]
[1736642492397,0.27504112,697.55,696.05,4.85659035]
[1736642493501,0.27504112,697.55,696.06,0.92550867]
[1736642493702,0.27504112,697.55,696.06,2.7353911]
[1736642494300,0.27504112,697.55,696.08,1.2903052]
[1736642495316,0.27504112,697.55,696.21,1.2903052]
[1736642495317,1.07025953,697.51,696.21,1.2903052]
[1736642496205,1.07025953,697.49,696.24,1.2903052]
[1736642496504,0.28674657,697.48,696.24,1.2903052]
[1736642497600,0.28674657,697.48,696.25,1.2903052]
[1736642498707,0.28674657,697.48,696.24,1.2903052]
[1736642499908,0.28674657,697.48,696.25,1.2903052]
[1736642502213,0.28674657,697.48,696.25,4.0256963]
[1736642503013,0.28674657,697.48,696.25,2.7353911]
[1736642503212,0.28674657,697.48,696.26,3.04670792]
[1736642503413,0.28674657,697.48,696.26,5.78209902]
[1736642503713,0.28674657,697.48,696.27,1.80988243]
[1736642504007,0.28674657,697.48,696.27,1.80503082]
[1736642504404,0.28674657,697.48,696.26,3.04670792]
[1736642504609,0.28674657,697.48,696.26,3.97318802]
[1736642504806,0.28674657,697.48,696.27,1.80503082]
[1736642505213,0.28674657,697.48,696.26,2.73153694]
[1736642506613,0.28674657,697.48,696.25,2.73153694]
[1736642507113,1.3570061,697.48,696.25,2.73153694]
[1736642509210,1.3570061,697.48,696.25,5.77824486]
[1736642509413,1.3570061,697.48,696.26,2.73153694]
[1736642510117,1.07025953,697.47,696.26,2.73153694]
[1736642510418,1.35701021,697.47,696.26,2.73153694]
[1736642512019,1.07025953,697.46,696.26,5.77824486]
[1736642512218,1.07025953,697.46,696.27,2.73153694]
[1736642513417,1.07025953,697.46,696.26,2.73153694]
[1736642514117,1.07025953,697.45,696.26,2.73153694]
[1736642514321,1.07025953,697.45,696.26,1.80503082]
[1736642514517,1.07025953,697.45,696.25,3.04670792]
[1736642515227,0.28675068,697.47,696.25,3.04670792]
[1736642515818,0.28675068,697.47,696.11,2.73819156]
[1736642516024,0.28675068,697.47,696.25,1.586]
[1736642526330,1.07025953,697.41,696.25,1.586]
[1736642527627,0.28677946,697.4,696.25,1.586]
[1736642554362,1.35703899,697.4,696.25,1.586]
[1736642554861,1.07025953,697.39,696.25,1.586]
[1736642555062,0.28678769,697.38,696.25,1.586]
[1736642555864,1.35704722,697.38,696.25,1.586]
[1736642557365,1.07025953,697.37,696.25,1.586]
[1736642557557,0.28679591,697.36,696.25,1.586]
[1736642558164,1.07025953,697.35,696.25,1.586]
[1736642558364,0.28680414,697.34,696.25,1.586]
[1736642559264,1.07025953,697.32,696.25,1.586]
[1736642559464,0.28681648,697.31,696.25,1.586]
[1736642560565,1.07025953,697.28,696.25,1.586]
[1736642561466,0.28683293,697.27,696.25,1.586]
[1736642585180,1.35709246,697.27,696.25,1.586]
[1736642586176,1.07025953,697.26,696.25,1.586]
[1736642586382,0.28684116,697.25,696.25,1.586]
[1736642603584,1.07025953,697.24,696.25,1.586]
[1736642604388,0.28684938,697.23,696.25,1.586]
[1736642604589,1.35710891,697.23,696.25,1.586]
[1736642606591,0.28684938,697.23,696.25,1.586]
[1736642619199,1.07025953,697.22,696.25,1.586]
[1736642619394,0.28685761,697.21,696.25,1.586]
[1736642645408,0.28685761,697.21,696.25,4.63668828]
[1736642645612,0.28685761,697.21,696.26,2.74458765]
[1736642647215,0.28685761,697.21,696.26,1.404]
[1736642656119,0.28685761,697.21,696.26,2.33444459]
[1736642656320,0.28685761,697.21,696.26,4.14858765]
[1736642657726,0.28685761,697.21,696.27,3.05068828]
[1736642657927,0.28685761,697.21,696.27,5.79527593]
[1736642658223,0.28685761,697.21,696.28,2.74458765]
[1736642660127,0.28685761,697.21,696.33,1.2903052]
[1736642661933,0.28685761,697.21,696.3,2.74458765]
[1736642662930,0.28685761,697.21,696.28,2.74458765]
[1736642666833,0.28685761,697.21,696.27,3.05068828]
[1736642667238,0.28685761,697.21,696.26,1.404]
[1736642674843,1.07430863,697.73,696.26,1.404]
[1736642675143,0.28664793,697.72,696.26,1.404]
[1736642681448,0.28664793,697.72,696.3,1.28674089]
[1736642682248,1.07430863,697.71,696.28,2.73575066]
[1736642682546,0.28665615,697.7,696.28,2.73575066]
[1736642682947,1.36096478,697.7,696.28,4.62275066]
[1736642683149,1.36096478,697.7,696.29,0.9276746]
[1736642683753,0.26355422,697.69,696.29,0.9276746]
[1736642683951,1.36096478,697.7,696.29,3.97836288]
[1736642684150,1.36096478,697.7,696.3,1.80807606]
[1736642684343,1.36096478,697.7,696.3,2.73575066]
[1736642684749,1.07430863,697.69,696.3,2.73575066]
[1736642685346,0.28666437,697.68,696.3,2.73575066]
[1736642685653,0.28666437,697.68,696.3,1.80807606]
[1736642685851,0.28666437,697.68,696.29,3.05068828]
[1736642685852,0.28666437,697.68,696.29,4.85876434]
[1736642688651,0.28666437,697.68,696.29,3.05068828]
[1736642689747,0.28666437,697.68,696.28,1.887]
[1736642699653,1.07430863,697.67,696.34,1.28674089]
[1736642700461,1.07430863,697.66,696.33,1.28674089]
[1736642701550,1.07430863,697.65,696.34,1.28674089]
[1736642701951,0.2866808,697.64,696.34,1.28674089]
[1736642702752,0.2866808,697.64,696.28,1.887]
[1736642711354,0.2866808,697.64,696.3,0.28723251]
[1736642712755,0.2866808,697.64,696.3,2.34523251]
[1736642728874,0.2866808,697.64,696.3,3.26993677]
[1736642729569,0.2866808,697.64,696.3,6.31609276]
[1736642729775,0.2866808,697.64,696.31,2.73397755]
[1736642729971,0.2866808,697.64,696.32,0.28722426]
[1736642731472,0.2866808,697.64,696.32,3.02120181]
[1736642733175,0.2866808,697.64,696.32,2.09649755]
[1736642733375,0.2866808,697.64,696.32,0.28722426]
[1736642734081,0.2866808,697.64,696.32,1.20846708]
[1736642734279,0.2866808,697.64,696.32,3.01774037]
[1736642736384,0.2866808,697.64,696.32,3.01783814]
[1736642737385,0.2866808,697.64,696.32,6.06399413]
[1736642737684,0.2866808,697.64,696.33,2.73061388]
[1736642737886,0.2866808,697.64,696.51,1.28674089]
[1736642738784,0.2866808,697.64,696.55,1.28674089]
[1736642739791,0.2866808,697.64,696.48,2.73061388]
[1736642739792,0.2866808,697.64,696.59,1.28674089]
[1736642741086,0.2866808,697.64,696.59,1.176]
[1736642741888,1.07430863,698.5,696.59,1.176]
[1736642742689,1.49655963,698.56,696.59,1.176]
[1736642742890,0.28631144,698.54,696.59,1.176]
[1736642743191,0.28631144,698.54,696.6,0.28710881]
[1736642754500,0.26324939,698.53,696.6,0.28710881]
[1736642754900,0.28631964,698.52,696.6,0.28710881]
[1736642755097,0.26324939,698.51,696.6,0.28710881]
[1736642755301,0.26324939,698.51,696.6,1.36610881]
[1736642755501,0.28632784,698.5,696.6,1.36610881]
[1736642755696,0.26324939,698.49,696.6,1.36610881]
[1736642755902,0.28633604,698.48,696.6,1.36610881]
[1736642760608,0.2632487,698.47,696.6,1.36610881]
[1736642761308,0.28633604,698.48,696.6,1.36610881]
[1736642761606,0.26324538,698.47,696.6,1.36610881]
[1736642761799,0.26324505,698.46,696.6,1.36610881]
[1736642762005,0.26324505,698.45,696.6,1.36610881]
[1736642762204,0.54959749,698.44,696.6,1.36610881]
[1736642762406,0.28635654,698.43,696.6,1.36610881]
[1736642764508,1.49560558,699.19,696.6,1.36610881]
[1736642764808,0.28605346,699.17,696.6,1.36610881]
[1736642765102,0.26308401,699.16,696.6,1.36610881]
[1736642765511,0.26308401,699.16,696.6,3.15107929]
[1736642765705,0.28606573,699.14,696.6,1.36610881]
[1736642765902,0.26308401,699.13,696.6,1.36610881]
[1736642766106,0.28606573,699.14,696.6,4.0650296]
[1736642766311,0.26307516,699.13,696.6,4.0650296]
[1736642766508,0.28607801,699.11,696.6,1.36610881]
[1736642772811,0.26308686,699.1,696.6,1.36610881]
[1736642773011,0.28609029,699.08,696.6,1.36610881]
[1736642773212,0.26308686,699.07,696.6,1.36610881]
[1736642773412,0.28610256,699.05,696.6,1.36610881]
[1736642773611,0.26308686,699.04,696.6,1.36610881]
[1736642773807,0.28611075,699.03,696.6,1.36610881]
[1736642774008,0.26308686,699.02,696.6,1.36610881]
[1736642774313,0.28611075,699.03,696.6,1.36610881]
[1736642774513,0.2630937,699.02,696.6,1.36610881]
[1736642774714,0.28611075,699.03,696.6,1.36610881]
[1736642774715,0.2630937,699.01,696.6,1.36610881]
[1736642774915,0.2630937,699.0,696.6,1.36610881]
[1736642775110,0.2630937,698.99,696.6,1.36610881]
[1736642775511,0.28613121,698.98,696.6,1.36610881]
[1736642775715,0.2630937,698.97,696.6,1.36610881]
[1736642776014,0.2861394,698.96,696.6,1.36610881]
[1736642776217,0.2630937,698.95,696.6,1.36610881]
[1736642776509,0.28614759,698.94,696.6,1.36610881]
[1736642776710,0.2630937,698.93,696.6,1.36610881]
[1736642777110,0.26309803,698.92,696.6,1.36610881]
[1736642777314,0.26309803,698.91,696.6,1.36610881]
[1736642777516,0.549262,698.9,696.6,1.36610881]
[1736642777716,0.28616397,698.9,696.6,1.36610881]
[1736642777910,0.26310151,698.89,696.6,1.36610881]
[1736642778312,0.28617216,698.88,696.6,1.36610881]
[1736642778517,0.26310151,698.87,696.6,1.36610881]
[1736642778713,0.28618035,698.86,696.6,1.36610881]
[1736642780520,0.28618035,698.86,696.6,2.27813535]
[1736642780723,0.28618035,698.86,696.6,4.05956927]
[1736642781722,0.28618035,698.86,696.6,3.14754273]
[1736642782018,0.28618035,698.86,696.61,3.04615599]
[1736642782219,0.28618035,698.86,696.61,4.82758991]
[1736642782617,0.28618035,698.86,696.72,0.28705936]
[1736642785322,0.26313275,698.85,696.72,0.28705936]
[1736642785523,0.28618854,698.84,696.72,1.80505936]
[1736642785723,0.26313275,698.83,696.72,1.80505936]
[1736642785926,0.54934444,698.82,696.72,1.80505936]
[1736642786226,2.56984458,699.12,696.72,1.80505936]
[1736642786227,0.54934853,698.81,696.72,1.80505936]
[1736642786528,0.54935263,698.8,696.72,1.80505936]
[1736642786826,0.54935672,698.79,696.72,1.80505936]
[1736642787022,0.54936082,698.78,696.72,1.80505936]
[1736642787225,0.26314771,698.77,696.72,1.80505936]
[1736642787929,0.2862213,698.76,696.72,1.80505936]
[1736642788128,0.26315866,698.75,696.72,1.80505936]
[1736642788731,0.28622949,698.74,696.73,1.28674089]
[1736642788931,0.26315866,698.73,696.75,0.287047]
[1736642789128,0.28623769,698.72,696.75,0.287047]
[1736642789631,0.28623769,698.72,696.75,1.57378789]
[1736642790631,0.28623769,698.72,696.75,0.287047]
[1736642795931,0.26319425,698.71,696.75,0.287047]
[1736642796136,0.28624588,698.7,696.75,0.287047]
[1736642796336,0.26318926,698.69,696.75,0.287047]
[1736642796933,0.28625407,698.68,696.75,0.287047]
[1736642797234,0.28625407,698.68,696.77,1.28674089]
[1736642797438,0.28625407,698.68,696.79,0.28703052]
[1736642797439,0.26319221,698.67,696.79,0.28703052]
[1736642797740,0.28626227,698.66,696.79,0.28703052]
[1736642798040,0.28626227,698.66,696.81,1.28674089]
[1736642798739,0.28626227,698.66,696.79,0.28703052]
[1736642801638,0.28626227,698.66,696.79,2.00303052]
[1736642805347,0.28626227,698.66,696.79,5.04918651]
[1736642805546,0.28626227,698.66,696.8,1.78143392]
[1736642805847,0.28626227,698.66,696.82,0.28701816]
[1736642807844,0.26323709,698.65,696.82,0.28701816]
[1736642808044,0.28627456,698.63,696.82,0.28701816]
[1736642808246,0.26323709,698.62,696.82,0.28701816]
[1736642808546,0.28628276,698.61,696.82,0.28701816]
[1736642808746,0.26323709,698.6,696.82,0.28701816]
[1736642808947,0.28629095,698.59,696.82,0.28701816]
[1736642809145,0.26323709,698.58,696.89,1.28674089]
[1736642809446,0.28629915,698.57,696.9,0.28698522]
[1736642809840,0.28629915,698.57,696.95,1.28674089]
[1736642810441,0.26324103,698.56,696.95,1.28674089]
[1736642810647,0.28630735,698.55,696.95,1.28674089]
[1736642810945,0.26324183,698.54,696.98,1.28674089]